[Event "32nd NATO Chess Championship"]
[Site "Tartu, Estonia"]
[Date "2022.06.27"]
[Round "1.43"]
[White "Boudry, Rik"]
[Black "Pazeriene, Diana"]
[Result "0-1"]
[TimeControl "90 min + 30 sec increment from move one"]
[WhiteFideId "237540"]
[BlackFideId "12802190"]
[WhiteElo "1468"]
[BlackElo "1930"]

1. e4 {[%clk 01:30:53]} {[%emt 00:00:06]} c6 {[%clk 01:30:52]} {[%emt
00:00:08]} 2. d4 {[%clk 01:30:57]} {[%emt 00:00:26]} d5 {[%clk 01:31:06]}
{[%emt 00:00:15]} 3. exd5 {[%clk 01:31:11]} {[%emt 00:00:17]} cxd5 {[%clk
01:31:30]} {[%emt 00:00:06]} 4. Bd3 {[%clk 01:31:24]} {[%emt 00:00:17]} Nf6
{[%clk 01:31:25]} {[%emt 00:00:34]} 5. Bf4 {[%clk 01:29:27]} {[%emt 00:02:27]}
Bg4 {[%clk 01:27:00]} {[%emt 00:04:55]} 6. Qd2 {[%clk 01:28:12]} {[%emt
00:01:46]} Nc6 {[%clk 01:26:37]} {[%emt 00:00:54]} 7. c3 {[%clk 01:28:03]}
{[%emt 00:00:38]} e6 {[%clk 01:25:45]} {[%emt 00:01:21]} 8. Ne2 {[%clk
01:25:12]} {[%emt 00:03:22]} Bh5 {[%clk 01:23:25]} {[%emt 00:02:50]} 9. h3
{[%clk 01:24:35]} {[%emt 00:01:07]} Be7 {[%clk 01:22:49]} {[%emt 00:01:06]} 10.
O-O {[%clk 01:23:48]} {[%emt 00:01:16]} Bg6 {[%clk 01:17:59]} {[%emt 00:05:21]}
11. Bxg6 {[%clk 01:19:08]} {[%emt 00:05:10]} hxg6 {[%clk 01:18:26]} {[%emt
00:00:04]} 12. Ng3 {[%clk 01:19:14]} {[%emt 00:00:23]} Rc8 {[%clk 01:13:28]}
{[%emt 00:05:27]} 13. Qd3 {[%clk 01:15:01]} {[%emt 00:04:44]} Bd6 {[%clk
01:05:33]} {[%emt 00:08:25]} 14. Bxd6 {[%clk 01:11:03]} {[%emt 00:04:27]} Qxd6
{[%clk 01:06:01]} {[%emt 00:00:01]} 15. Re1 {[%clk 01:09:46]} {[%emt 00:01:47]}
a6 {[%clk 01:01:44]} {[%emt 00:04:49]} 16. Nd2 {[%clk 01:09:30]} {[%emt
00:00:45]} Ne7 {[%clk 00:45:44]} {[%emt 00:16:30]} 17. Nf3 {[%clk 01:06:01]}
{[%emt 00:04:00]} b5 {[%clk 00:44:06]} {[%emt 00:02:08]} 18. Rac1 {[%clk
00:59:33]} {[%emt 00:05:23]} O-O {[%clk 00:32:28]} {[%emt 00:13:42]} 19. Ne5
{[%clk 00:56:22]} {[%emt 00:03:40]} Nd7 {[%clk 00:28:44]} {[%emt 00:04:15]} 20.
Qe3 {[%clk 00:51:59]} {[%emt 00:04:53]} Nxe5 {[%clk 00:24:44]} {[%emt
00:04:30]} 21. Qxe5 {[%clk 00:50:43]} {[%emt 00:01:46]} Qxe5 {[%clk 00:24:49]}
{[%emt 00:00:25]} 22. Rxe5 {[%clk 00:50:37]} {[%emt 00:00:36]} Rc6 {[%clk
00:23:34]} {[%emt 00:01:46]} 23. Ree1 {[%clk 00:42:51]} {[%emt 00:08:15]} Rfc8
{[%clk 00:22:53]} {[%emt 00:01:11]} 24. a3 {[%clk 00:41:46]} {[%emt 00:01:36]}
a5 {[%clk 00:23:13]} {[%emt 00:00:09]} 25. Ne2 {[%clk 00:39:05]} {[%emt
00:03:11]} Nf5 {[%clk 00:23:17]} {[%emt 00:00:26]} 26. b4 {[%clk 00:38:20]}
{[%emt 00:01:16]} axb4 {[%clk 00:22:43]} {[%emt 00:01:03]} 27. axb4 {[%clk
00:38:18]} {[%emt 00:00:32]} Ra6 {[%clk 00:22:38]} {[%emt 00:00:35]} 28. Kh2
{[%clk 00:31:23]} {[%emt 00:07:25]} Ra3 {[%clk 00:22:06]} {[%emt 00:01:02]} 29.
Ra1 {[%clk 00:26:50]} {[%emt 00:05:03]} Rca8 {[%clk 00:22:23]} {[%emt
00:00:13]} 30. Rxa3 {[%emt 00:00:18]} Rxa3 {[%emt 00:00:02]} 31. g4 {[%clk
00:26:13]} {[%emt 00:00:48]} Nd6 {[%clk 00:22:35]} {[%emt 00:00:17]} 32. Kg3
{[%clk 00:24:46]} {[%emt 00:01:57]} Ne4+ {[%clk 00:22:32]} {[%emt 00:00:34]} 33.
Kf4 {[%clk 00:21:46]} {[%emt 00:01:12]} Nxf2 {[%clk 00:21:29]} {[%emt
00:03:51]} 0-1

[Event "32nd NATO Chess Championship"]
[Site "Tartu, Estonia"]
[Date "2022.06.27"]
[Round "1.45"]
[White "Sui, Andres"]
[Black "Farrell, John"]
[Result "0-1"]
[TimeControl "90 min + 30 sec increment from move one"]
[WhiteFideId "4507029"]
[BlackFideId "2024608"]
[WhiteElo "1288"]
[BlackElo "1913"]

1. g3 {[%clk 01:30:04]} {[%emt 00:00:55]} Nf6 {[%clk 01:30:46]} {[%emt
00:00:15]} 2. c4 {[%clk 01:29:41]} {[%emt 00:00:52]} c5 {[%clk 01:30:59]}
{[%emt 00:00:18]} 3. Nc3 {[%clk 01:29:09]} {[%emt 00:01:28]} Nc6 {[%clk
01:30:16]} {[%emt 00:01:13]} 4. Bg2 {[%clk 01:27:56]} {[%emt 00:01:41]} g6
{[%clk 01:30:00]} {[%emt 00:00:47]} 5. e3 {[%clk 01:27:39]} {[%emt 00:00:46]}
Bg7 {[%clk 01:29:02]} {[%emt 00:01:29]} 6. Nf3 {[%clk 01:25:45]} {[%emt
00:02:24]} O-O {[%clk 01:28:56]} {[%emt 00:00:36]} 7. O-O {[%clk 01:24:37]}
{[%emt 00:01:38]} d5 {[%clk 01:29:08]} {[%emt 00:00:18]} 8. cxd5 {[%clk
01:21:10]} {[%emt 00:03:57]} Nxd5 {[%clk 01:29:31]} {[%emt 00:00:07]} 9. a3
{[%clk 01:18:44]} {[%emt 00:02:57]} Nc7 {[%clk 01:27:49]} {[%emt 00:02:12]} 10.
Qc2 {[%clk 01:15:57]} {[%emt 00:03:16]} e5 {[%clk 01:25:34]} {[%emt 00:02:46]}
11. d3 {[%clk 01:12:08]} {[%emt 00:04:19]} Ne6 {[%clk 01:22:41]} {[%emt
00:03:22]} 12. Rd1 {[%clk 01:04:15]} {[%emt 00:08:23]} Rb8 {[%clk 01:21:36]}
{[%emt 00:01:36]} 13. Ne2 {[%clk 00:59:15]} {[%emt 00:05:30]} Qe7 {[%clk
01:11:37]} {[%emt 00:10:30]} 14. Bd2 {[%clk 00:55:04]} {[%emt 00:04:41]} a6
{[%clk 01:09:16]} {[%emt 00:02:51]} 15. Rab1 {[%clk 00:53:05]} {[%emt
00:02:29]} b5 {[%clk 01:07:01]} {[%emt 00:02:44]} 16. b4 {[%clk 00:46:32]}
{[%emt 00:07:04]} Bb7 {[%clk 01:07:02]} {[%emt 00:00:29]} 17. bxc5 {[%clk
00:46:10]} {[%emt 00:00:51]} Qxc5 {[%clk 01:05:05]} {[%emt 00:02:28]} 18. Qb3
{[%clk 00:40:39]} {[%emt 00:06:01]} Qd6 {[%clk 00:58:31]} {[%emt 00:07:03]} 19.
Bb4 {[%clk 00:34:02]} {[%emt 00:07:07]} Nxb4 {[%clk 00:58:13]} {[%emt
00:00:49]} 20. axb4 {[%clk 00:31:18]} {[%emt 00:03:13]} Rfd8 {[%clk 00:56:00]}
{[%emt 00:02:43]} 21. Rbc1 {[%clk 00:20:54]} {[%emt 00:10:54]} Rbc8 {[%clk
00:54:07]} {[%emt 00:02:24]} 22. Rxc8 {[%clk 00:18:43]} {[%emt 00:02:42]} Bxc8
{[%clk 00:54:07]} {[%emt 00:00:30]} 23. Rc1 {[%clk 00:18:16]} {[%emt 00:00:57]}
Bb7 {[%clk 00:54:01]} {[%emt 00:00:35]} 24. Rd1 {[%clk 00:17:18]} {[%emt
00:01:29]} h6 {[%clk 00:51:02]} {[%emt 00:03:28]} 25. h4 {[%clk 00:17:16]}
{[%emt 00:00:32]} Bf8 {[%clk 00:49:44]} {[%emt 00:01:48]} 26. Qc3 {[%clk
00:13:38]} {[%emt 00:04:08]} Bg7 {[%clk 00:49:53]} {[%emt 00:00:22]} 27. Qb3
{[%clk 00:13:42]} {[%emt 00:00:26]} Bd5 {[%clk 00:44:56]} {[%emt 00:05:26]} 28.
Qc3 {[%clk 00:13:11]} {[%emt 00:01:01]} e4 {[%clk 00:44:33]} {[%emt 00:00:52]}
29. Nfd4 {[%clk 00:13:35]} {[%emt 00:00:07]} exd3 {[%clk 00:44:10]} {[%emt
00:00:53]} 30. Rxd3 {[%clk 00:13:03]} {[%emt 00:01:02]} Bc4 {[%clk 00:43:19]}
{[%emt 00:01:20]} 31. Nxe6 {[%clk 00:10:45]} {[%emt 00:02:48]} Bxc3 {[%clk
00:42:27]} {[%emt 00:01:22]} 32. Rxd6 {[%clk 00:10:39]} {[%emt 00:00:37]} Rxd6
{[%clk 00:42:42]} {[%emt 00:00:15]} 33. Nxc3 {[%clk 00:10:17]} {[%emt
00:00:52]} Bxe6 {[%clk 00:41:59]} {[%emt 00:01:12]} 34. Bb7 {[%clk 00:10:19]}
{[%emt 00:00:28]} Rd3 {[%clk 00:40:25]} {[%emt 00:02:02]} 35. Ne4 {[%clk
00:10:22]} {[%emt 00:00:28]} Rd1+ {[%clk 00:39:13]} {[%emt 00:01:42]} 36. Kg2
{[%clk 00:10:30]} {[%emt 00:00:22]} Rb1 {[%clk 00:36:41]} {[%emt 00:03:02]} 37.
Nc5 {[%clk 00:09:59]} {[%emt 00:01:00]} Rxb4 {[%clk 00:36:35]} {[%emt
00:00:36]} 38. Nxa6 {[%clk 00:10:17]} {[%emt 00:00:12]} Rb2 {[%clk 00:36:01]}
{[%emt 00:01:04]} 39. Nc5 {[%clk 00:10:18]} {[%emt 00:00:30]} b4 {[%clk
00:34:19]} {[%emt 00:02:11]} 40. Ba6 {[%clk 00:09:27]} {[%emt 00:01:22]} Rc2
{[%clk 00:32:38]} {[%emt 00:02:10]} 41. Nd3 {[%clk 00:09:13]} {[%emt 00:00:44]}
b3 {[%clk 00:32:44]} {[%emt 00:00:25]} 42. Nb4 {[%clk 00:09:30]} {[%emt
00:00:14]} b2 {[%clk 00:31:42]} {[%emt 00:01:31]} 43. Bd3 {[%clk 00:09:48]}
{[%emt 00:00:13]} b1=Q {[%clk 00:31:34]} {[%emt 00:00:35]} 0-1

[Event "32nd NATO Chess Championship"]
[Site "Tartu, Estonia"]
[Date "2022.06.28"]
[Round "2.1"]
[White "Stein, Robert"]
[Black "Tustanowski, Mateusz"]
[Result "1-0"]
[TimeControl "90 min + 30 sec increment from move one"]
[WhiteTitle "FM"]
[WhiteFideId "12921084"]
[BlackFideId "1169866"]
[WhiteElo "2365"]
[BlackElo "2036"]

1. d4 {[%clk 01:30:55]} {[%emt 00:00:04]} Nf6 {[%clk 01:30:31]} {[%emt
00:00:31]} 2. c4 {[%clk 01:30:04]} {[%emt 00:01:21]} g6 {[%clk 01:26:40]}
{[%emt 00:04:21]} 3. g3 {[%clk 01:26:07]} {[%emt 00:04:26]} Bg7 {[%clk
01:21:35]} {[%emt 00:05:35]} 4. Bg2 {[%clk 01:24:55]} {[%emt 00:01:42]} d6
{[%clk 01:16:48]} {[%emt 00:05:17]} 5. Nf3 {[%clk 01:23:42]} {[%emt 00:01:42]}
O-O {[%clk 01:15:02]} {[%emt 00:02:17]} 6. O-O {[%clk 01:23:55]} {[%emt
00:00:18]} Nbd7 {[%clk 01:12:05]} {[%emt 00:03:26]} 7. Nc3 {[%clk 01:21:26]}
{[%emt 00:02:59]} e5 {[%clk 01:05:35]} {[%emt 00:07:01]} 8. e4 {[%clk
01:18:48]} {[%emt 00:03:07]} exd4 {[%clk 00:53:27]} {[%emt 00:12:38]} 9. Nxd4
{[%clk 01:18:27]} {[%emt 00:00:51]} Re8 {[%clk 00:53:02]} {[%emt 00:00:54]} 10.
Re1 {[%clk 01:05:44]} {[%emt 00:13:13]} Nc5 {[%clk 00:46:49]} {[%emt 00:06:44]}
11. Bf4 {[%clk 00:53:51]} {[%emt 00:12:22]} Ne6 {[%clk 00:35:54]} {[%emt
00:11:26]} 12. Be3 {[%clk 00:48:24]} {[%emt 00:05:57]} Ng4 {[%clk 00:31:39]}
{[%emt 00:04:45]} 13. Qxg4 {[%clk 00:47:56]} {[%emt 00:00:57]} Nxd4 {[%clk
00:31:20]} {[%emt 00:00:49]} 14. Qd1 {[%clk 00:47:51]} {[%emt 00:00:35]} c5
{[%clk 00:23:44]} {[%emt 00:08:07]} 15. Qd2 {[%clk 00:42:33]} {[%emt 00:05:47]}
Be6 {[%clk 00:13:39]} {[%emt 00:10:36]} 16. Ne2 {[%clk 00:31:34]} {[%emt
00:11:29]} Nc6 {[%clk 00:08:43]} {[%emt 00:05:26]} 17. Rac1 {[%clk 00:22:16]}
{[%emt 00:09:48]} Ne5 {[%clk 00:07:51]} {[%emt 00:01:22]} 18. b3 {[%clk
00:19:23]} {[%emt 00:03:23]} Bg4 {[%clk 00:06:35]} {[%emt 00:01:45]} 19. Nc3
{[%clk 00:16:35]} {[%emt 00:03:18]} Nf3+ {[%clk 00:04:16]} {[%emt 00:02:50]} 20.
Bxf3 {[%clk 00:17:01]} {[%emt 00:00:04]} Bxf3 {[%clk 00:04:42]} {[%emt
00:00:04]} 21. Bh6 {[%clk 00:15:14]} {[%emt 00:02:17]} Qd7 {[%clk 00:02:54]}
{[%emt 00:02:18]} 22. Qf4 {[%clk 00:14:37]} {[%emt 00:01:07]} Bxh6 {[%clk
00:02:45]} {[%emt 00:00:39]} 23. Qxh6 {[%clk 00:15:03]} {[%emt 00:00:04]} f5
{[%clk 00:00:59]} {[%emt 00:02:16]} 24. Nd5 {[%clk 00:08:48]} {[%emt 00:06:45]}
Qf7 {[%clk 00:00:40]} {[%emt 00:00:49]} 25. exf5 {[%clk 00:06:10]} {[%emt
00:03:09]} Bxd5 {[%clk 00:00:38]} {[%emt 00:00:31]} 26. fxg6 {[%clk 00:06:03]}
{[%emt 00:00:38]} hxg6 {[%clk 00:00:38]} {[%emt 00:00:29]} 27. cxd5 {[%clk
00:06:27]} {[%emt 00:00:06]} Rxe1+ {[%clk 00:00:51]} {[%emt 00:00:17]} 28. Rxe1
{[%clk 00:06:45]} {[%emt 00:00:12]} Re8 {[%clk 00:00:38]} {[%emt 00:00:42]} 29.
Rxe8+ {[%clk 00:06:35]} {[%emt 00:00:41]} Qxe8 {[%clk 00:01:05]} {[%emt
00:00:04]} 30. Qe3 {[%clk 00:05:50]} {[%emt 00:01:14]} Qf7 {[%clk 00:01:15]}
{[%emt 00:00:20]} 31. Qd3 {[%clk 00:04:40]} {[%emt 00:01:40]} Qf6 {[%clk
00:00:48]} {[%emt 00:00:57]} 32. a4 {[%clk 00:04:39]} {[%emt 00:00:32]} a6
{[%clk 00:00:59]} {[%emt 00:00:18]} 33. h4 {[%clk 00:04:08]} {[%emt 00:01:00]}
Kg7 {[%clk 00:01:15]} {[%emt 00:00:15]} 34. Kg2 {[%clk 00:03:34]} {[%emt
00:01:03]} Qe5 {[%clk 00:01:34]} {[%emt 00:00:11]} 35. f4 {[%clk 00:03:18]}
{[%emt 00:00:46]} Qb2+ {[%clk 00:02:00]} {[%emt 00:00:05]} 36. Kh3 {[%clk
00:03:44]} {[%emt 00:00:04]} Qf2 {[%clk 00:01:00]} {[%emt 00:01:30]} 37. Kg4
{[%clk 00:02:37]} {[%emt 00:01:36]} Qb2 {[%clk 00:00:35]} {[%emt 00:00:56]} 38.
a5 {[%clk 00:01:07]} {[%emt 00:02:01]} Qa1 {[%clk 00:00:34]} {[%emt 00:00:30]}
39. Qe2 {[%clk 00:01:13]} {[%emt 00:00:24]} Kh6 {[%clk 00:00:48]} {[%emt
00:00:16]} 40. Qd2 {[%clk 00:00:41]} {[%emt 00:01:03]} Kg7 {[%clk 00:01:02]}
{[%emt 00:00:15]} 41. f5 {[%clk 00:00:36]} {[%emt 00:00:36]} gxf5+ {[%clk
00:01:02]} {[%emt 00:00:29]} 42. Kxf5 {[%clk 00:00:47]} {[%emt 00:00:18]} Qe5+
{[%clk 00:01:16]} {[%emt 00:00:17]} 43. Kg4 {[%clk 00:00:44]} {[%emt 00:00:33]}
Qe4+ {[%clk 00:01:33]} {[%emt 00:00:13]} 44. Qf4 {[%clk 00:00:53]} {[%emt
00:00:21]} Qe2+ {[%clk 00:00:38]} {[%emt 00:01:25]} 45. Qf3 {[%clk 00:01:02]}
{[%emt 00:00:20]} Qd2 {[%clk 00:00:48]} {[%emt 00:00:21]} 46. Qe4 {[%clk
00:01:19]} {[%emt 00:00:12]} Qd1+ {[%clk 00:00:55]} {[%emt 00:00:24]} 47. Kg5
{[%clk 00:01:04]} {[%emt 00:00:43]} Qxb3 {[%clk 00:00:32]} {[%emt 00:00:56]} 48.
Qe7+ {[%clk 00:01:28]} {[%emt 00:00:05]} Kg8 {[%clk 00:00:59]} {[%emt
00:00:04]} 49. Kh6 {[%clk 00:00:43]} {[%emt 00:01:14]} 1-0

[Event "32nd NATO Chess Championship"]
[Site "Tartu, Estonia"]
[Date "2022.06.28"]
[Round "2.2"]
[White "Jacob, Tobias"]
[Black "Pedersen, Finn"]
[Result "0-1"]
[TimeControl "90 min + 30 sec increment from move one"]
[BlackTitle "FM"]
[WhiteFideId "12903221"]
[BlackFideId "1400762"]
[WhiteElo "2013"]
[BlackElo "2300"]

1. c4 {[%clk 01:30:52]} {[%emt 00:00:08]} c6 {[%clk 01:30:47]} {[%emt
00:00:14]} 2. g3 {[%clk 01:31:14]} {[%emt 00:00:07]} d5 {[%clk 01:31:11]}
{[%emt 00:00:06]} 3. Bg2 {[%clk 01:31:37]} {[%emt 00:00:07]} Nf6 {[%clk
01:31:25]} {[%emt 00:00:16]} 4. Nf3 {[%clk 01:31:57]} {[%emt 00:00:10]} Bf5
{[%clk 01:31:03]} {[%emt 00:00:53]} 5. Qb3 {[%clk 01:31:51]} {[%emt 00:00:36]}
Qb6 {[%clk 01:30:35]} {[%emt 00:00:57]} 6. d3 {[%clk 01:32:09]} {[%emt
00:00:13]} e6 {[%clk 01:29:00]} {[%emt 00:02:05]} 7. Be3 {[%clk 01:31:42]}
{[%emt 00:00:57]} dxc4 {[%clk 01:28:14]} {[%emt 00:01:16]} 8. Qxc4 {[%clk
01:26:44]} {[%emt 00:05:28]} Qb4+ {[%clk 01:26:03]} {[%emt 00:02:40]} 9. Qxb4
{[%clk 01:25:11]} {[%emt 00:02:04]} Bxb4+ {[%clk 01:26:23]} {[%emt 00:00:09]}
10. Nc3 {[%clk 01:25:19]} {[%emt 00:00:23]} Nbd7 {[%clk 01:25:15]} {[%emt
00:01:36]} 11. O-O {[%clk 01:24:57]} {[%emt 00:00:53]} h6 {[%clk 01:23:11]}
{[%emt 00:02:35]} 12. a3 {[%clk 01:23:21]} {[%emt 00:02:06]} Be7 {[%clk
01:21:31]} {[%emt 00:02:08]} 13. b4 {[%clk 01:21:37]} {[%emt 00:02:15]} a6
{[%clk 01:18:01]} {[%emt 00:04:01]} 14. Nd4 {[%clk 01:17:18]} {[%emt 00:04:47]}
Bh7 {[%clk 01:17:52]} {[%emt 00:00:39]} 15. Nb3 {[%clk 01:16:34]} {[%emt
00:01:15]} Nd5 {[%clk 01:12:02]} {[%emt 00:06:20]} 16. Nxd5 {[%clk 01:11:01]}
{[%emt 00:06:04]} cxd5 {[%clk 01:07:36]} {[%emt 00:04:55]} 17. Rac1 {[%clk
01:02:36]} {[%emt 00:08:55]} Bd6 {[%clk 01:06:06]} {[%emt 00:02:00]} 18. Na5
{[%clk 00:58:43]} {[%emt 00:04:23]} b6 {[%clk 01:05:41]} {[%emt 00:00:54]} 19.
Rc6 {[%clk 00:25:05]} {[%emt 00:34:08]} bxa5 {[%clk 01:01:16]} {[%emt
00:04:56]} 20. Rxd6 {[%clk 00:25:07]} {[%emt 00:00:28]} axb4 {[%clk 01:01:28]}
{[%emt 00:00:18]} 21. axb4 {[%clk 00:24:55]} {[%emt 00:00:42]} Ke7 {[%clk
01:01:22]} {[%emt 00:00:36]} 22. Rc6 {[%clk 00:25:16]} {[%emt 00:00:10]} Rhc8
{[%clk 01:01:28]} {[%emt 00:00:22]} 23. Rxc8 {[%clk 00:22:09]} {[%emt
00:03:38]} Rxc8 {[%clk 01:01:50]} {[%emt 00:00:08]} 24. Ra1 {[%clk 00:22:11]}
{[%emt 00:00:27]} Rc6 {[%clk 01:01:13]} {[%emt 00:01:08]} 25. f4 {[%clk
00:21:41]} {[%emt 00:01:01]} Kd6 {[%clk 01:00:33]} {[%emt 00:01:09]} 26. Kf2
{[%clk 00:20:56]} {[%emt 00:01:15]} f6 {[%clk 00:59:16]} {[%emt 00:01:46]} 27.
Ra5 {[%clk 00:19:40]} {[%emt 00:01:46]} g5 {[%clk 00:58:35]} {[%emt 00:01:11]}
28. g4 {[%clk 00:17:41]} {[%emt 00:02:30]} Bg8 {[%clk 00:58:28]} {[%emt
00:00:36]} 29. Kg3 {[%clk 00:16:14]} {[%emt 00:01:57]} e5 {[%clk 00:56:35]}
{[%emt 00:02:23]} 30. fxe5+ {[%clk 00:15:42]} {[%emt 00:01:03]} Nxe5 {[%clk
00:55:51]} {[%emt 00:01:14]} 31. Bc5+ {[%clk 00:15:11]} {[%emt 00:01:01]} Kc7
{[%clk 00:53:38]} {[%emt 00:02:43]} 32. Bf8 {[%clk 00:14:37]} {[%emt 00:01:03]}
Rc2 {[%clk 00:51:10]} {[%emt 00:02:59]} 33. Bf3 {[%clk 00:07:50]} {[%emt
00:07:17]} Kb6 {[%clk 00:50:59]} {[%emt 00:00:41]} 34. Bc5+ {[%clk 00:06:10]}
{[%emt 00:02:10]} Kb7 {[%clk 00:51:23]} {[%emt 00:00:07]} 35. Be7 {[%clk
00:06:22]} {[%emt 00:00:17]} Nc6 {[%clk 00:51:19]} {[%emt 00:00:34]} 36. Rc5
{[%clk 00:05:13]} {[%emt 00:01:40]} Nxb4 {[%clk 00:50:39]} {[%emt 00:01:09]} 37.
Rxc2 {[%clk 00:04:28]} {[%emt 00:01:15]} Nxc2 {[%clk 00:51:02]} {[%emt
00:00:07]} 38. Bxf6 {[%clk 00:04:45]} {[%emt 00:00:13]} a5 {[%clk 00:48:37]}
{[%emt 00:02:55]} 39. e4 {[%clk 00:04:44]} {[%emt 00:00:31]} Kc6 {[%clk
00:48:47]} {[%emt 00:00:20]} 40. Bg7 {[%clk 00:04:24]} {[%emt 00:00:50]} d4
{[%clk 00:46:27]} {[%emt 00:02:49]} 41. Bd1 {[%clk 00:02:55]} {[%emt 00:02:00]}
Bb3 {[%clk 00:44:00]} {[%emt 00:02:57]} 42. Bxh6 {[%clk 00:02:07]} {[%emt
00:01:19]} a4 {[%clk 00:44:02]} {[%emt 00:00:28]} 43. Bg7 {[%clk 00:01:16]}
{[%emt 00:01:20]} Kc5 {[%clk 00:43:26]} {[%emt 00:01:06]} 44. Bf8+ {[%clk
00:01:42]} {[%emt 00:00:04]} Kb5 {[%clk 00:43:48]} {[%emt 00:00:08]} 45. h4
{[%clk 00:01:14]} {[%emt 00:00:58]} gxh4+ {[%clk 00:42:01]} {[%emt 00:02:17]}
46. Kxh4 {[%clk 00:01:42]} {[%emt 00:00:02]} Nb4 {[%clk 00:41:45]} {[%emt
00:00:45]} 47. Bg7 {[%clk 00:00:37]} {[%emt 00:01:35]} Nc6 {[%clk 00:41:55]}
{[%emt 00:00:21]} 48. e5 {[%clk 00:00:35]} {[%emt 00:00:32]} Bxd1 {[%clk
00:41:38]} {[%emt 00:00:47]} 49. e6 {[%clk 00:00:56]} {[%emt 00:00:09]} Bb3
{[%clk 00:41:38]} {[%emt 00:00:30]} 50. e7 {[%clk 00:01:17]} {[%emt 00:00:09]}
Bf7 {[%clk 00:41:59]} {[%emt 00:00:08]} 51. Kg5 {[%clk 00:01:14]} {[%emt
00:00:34]} a3 {[%clk 00:42:16]} {[%emt 00:00:13]} 0-1

[Event "32nd NATO Chess Championship"]
[Site "Tartu, Estonia"]
[Date "2022.06.28"]
[Round "2.3"]
[White "Pavlidis, Anastasios"]
[Black "Hernandez, Albert"]
[Result "1-0"]
[TimeControl "90 min + 30 sec increment from move one"]
[WhiteTitle "IM"]
[WhiteFideId "4208404"]
[BlackFideId "2075407"]
[WhiteElo "2296"]
[BlackElo "2012"]

1. d4 {[%clk 01:30:53]} {[%emt 00:00:05]} Nf6 {[%clk 01:30:55]} {[%emt
00:00:06]} 2. c4 {[%clk 01:31:10]} {[%emt 00:00:11]} g6 {[%clk 01:31:21]}
{[%emt 00:00:06]} 3. Nf3 {[%clk 01:30:39]} {[%emt 00:01:00]} Bg7 {[%clk
01:31:45]} {[%emt 00:00:06]} 4. g3 {[%clk 01:25:30]} {[%emt 00:05:39]} O-O
{[%clk 01:31:53]} {[%emt 00:00:22]} 5. Bg2 {[%clk 01:25:52]} {[%emt 00:00:07]}
d6 {[%clk 01:31:39]} {[%emt 00:00:46]} 6. O-O {[%clk 01:25:37]} {[%emt
00:00:44]} Nbd7 {[%clk 01:31:15]} {[%emt 00:00:55]} 7. Nc3 {[%clk 01:25:29]}
{[%emt 00:00:36]} e5 {[%clk 01:30:58]} {[%emt 00:00:49]} 8. e4 {[%clk
01:24:26]} {[%emt 00:01:32]} c6 {[%clk 01:30:23]} {[%emt 00:01:05]} 9. h3
{[%clk 01:12:21]} {[%emt 00:12:35]} Qc7 {[%clk 01:29:50]} {[%emt 00:01:03]} 10.
Be3 {[%clk 01:10:24]} {[%emt 00:02:27]} Re8 {[%clk 01:28:33]} {[%emt 00:01:47]}
11. Qc2 {[%clk 01:03:16]} {[%emt 00:07:37]} Nf8 {[%clk 01:27:17]} {[%emt
00:01:46]} 12. Rfd1 {[%clk 01:01:03]} {[%emt 00:02:41]} Bd7 {[%clk 01:24:47]}
{[%emt 00:03:02]} 13. c5 {[%clk 00:57:00]} {[%emt 00:04:34]} dxc5 {[%clk
01:23:17]} {[%emt 00:01:59]} 14. dxe5 {[%clk 00:55:04]} {[%emt 00:02:27]} Nh5
{[%clk 01:19:08]} {[%emt 00:04:40]} 15. g4 {[%clk 00:52:46]} {[%emt 00:02:46]}
Bxe5 {[%clk 01:19:11]} {[%emt 00:00:29]} 16. gxh5 {[%clk 00:52:55]} {[%emt
00:00:20]} Qc8 {[%clk 01:15:36]} {[%emt 00:04:05]} 17. hxg6 {[%clk 00:44:11]}
{[%emt 00:09:13]} Nxg6 {[%clk 01:12:18]} {[%emt 00:03:48]} 18. Nxe5 {[%clk
00:43:45]} {[%emt 00:00:56]} Rxe5 {[%clk 01:12:23]} {[%emt 00:00:26]} 19. f4
{[%clk 00:43:46]} {[%emt 00:00:29]} Bxh3 {[%clk 01:08:36]} {[%emt 00:04:18]} 20.
fxe5 {[%clk 00:41:21]} {[%emt 00:02:54]} Nh4 {[%clk 01:05:32]} {[%emt
00:03:35]} 21. Bg5 {[%clk 00:37:48]} {[%emt 00:03:59]} 1-0